fUSD/lending_fUSD_20240702
["ID","MTS","AMOUNT","RATE_DAILY","PERIOD"]
[330937118,1719951254529,411.51824924,0.00011199,2]
[330937119,1719951255616,6304.5007521,0.00011199,2]
[330937120,1719951270212,150.5,0.0001399,30]
[330937121,1719951270670,150.5,0.0001398,30]
[330937122,1719951271135,150.5,0.0001397,30]
[330937123,1719951274398,181.09928912,0.00011199,2]
[330937124,1719951344012,4716.10370575,0.00011199,2]
[330937125,1719951357961,7552.35530891,0.00011199,2]
[330937126,1719951374439,7731.54098534,0.00011199,2]
[330937127,1719951374459,2794.88153513,0.00011199,2]
[330937128,1719951394183,167.79,0.00010831,2]
[330937129,1719951394244,218.22798197,0.00011199,2]
[330937131,1719951451433,163.71199827,0.00011199,2]
[330937132,1719951457960,3870.4753493,0.00011199,2]
[330937133,1719951463591,339.31808863,0.00011199,2]
[330937134,1719951466493,312.25192237,0.00011199,2]
[330937135,1719951505680,1068.74677521,0.00011199,2]
[330937136,1719951549410,5877.95802406,0.00011199,2]
[330937137,1719951549593,-1286.28540471,0.00012176,2]
[330937138,1719951549616,-531.28,0.00012177,2]
[330937139,1719951549638,-15914.2477,0.00012214,2]
[330937140,1719951549658,-346.52954461,0.00012273,2]
[330937141,1719951574334,2786.2536998,0.00011199,2]
[330937142,1719951574360,44.97245736,0.00011199,2]
[330937143,1719951580121,150.0,0.00011199,2]
[330937144,1719951580144,150.0,0.00011199,2]
[330937145,1719951580166,150.0,0.00011199,2]
[330937146,1719951580188,150.0,0.00011199,2]
[330937147,1719951580210,150.0,0.00011199,2]
[330937148,1719951580231,150.0,0.00011199,2]
[330937149,1719951580253,150.0,0.00011199,2]
[330937150,1719951580274,150.0,0.00011199,2]
[330937151,1719951580295,150.0,0.00011199,2]
[330937152,1719951580316,150.0,0.00011199,2]
[330937153,1719951580339,150.0,0.00011199,2]
[330937154,1719951580361,150.0,0.00011199,2]
[330937155,1719951580384,150.0,0.00011199,2]
[330937156,1719951580412,150.0,0.00011199,2]
[330937157,1719951580433,150.0,0.00011199,2]
[330937158,1719951580456,150.0,0.00011199,2]
[330937159,1719951580478,150.0,0.00011199,2]
[330937160,1719951580499,150.0,0.00011199,2]
[330937161,1719951580520,150.0,0.00011199,2]
[330937162,1719951580540,150.0,0.00011199,2]
[330937163,1719951580561,150.0,0.00011199,2]
[330937164,1719951580584,150.0,0.00011199,2]
[330937165,1719951580606,4658.75200813,0.00011199,2]
[330937166,1719951589236,150.0,0.00011199,2]
[330937167,1719951589258,150.0,0.00011199,2]
[330937168,1719951589280,150.0,0.00011199,2]
[330937169,1719951589301,3510.6654714,0.00011199,2]
[330937170,1719951593318,150.0,0.00011199,2]
[330937171,1719951593345,150.0,0.00011199,2]
[330937172,1719951593367,174.3242111,0.00011199,2]
[330937174,1719951623125,63.68350216,0.00011199,2]
[330937175,1719951623150,19936.31649784,0.00011199,2]
[330937177,1719951626303,3106.52214219,0.00011199,2]
[330937178,1719951645618,155.1707429,0.00011199,2]
[330937181,1719951708486,26468.76947861,0.00011199,2]
[330937183,1719951761366,1500.0,0.00011199,2]
[330937185,1719951790238,-326.0,0.0001126,2]
[330937186,1719951792351,155.42013436,0.00011199,2]
[330937187,1719951806046,1299.61506658,0.00011199,2]
[330937188,1719951854433,6226.22133206,0.00011199,2]
[330937190,1719951867436,1607.75265165,0.00011199,2]
[330937191,1719951882906,582.92671203,0.00011199,2]
[330937192,1719951899135,2692.90248861,0.00011199,2]
[330937193,1719951951657,156.26034883,0.00011199,2]
[330937194,1719951964336,474.72494916,0.00011199,2]
[330937195,1719951966694,167.79,0.00010474,2]
[330937196,1719951982570,155.38783042,0.00011199,2]
[330937197,1719951987397,235.38273328,0.00011199,2]
[330937198,1719951989287,327.92162053,0.00011199,2]
[330937200,1719951997184,155.0,0.00011199,2]
[330937201,1719952001801,242.12454532,0.00011199,2]
[330937202,1719952019375,222.58280497,0.00011199,2]
[330937203,1719952028929,156.25853834,0.00011199,2]
[330937204,1719952046557,202.68124914,0.00011199,2]
[330937205,1719952051458,450.0,0.00011199,2]
[330937206,1719952064908,159.04926274,0.00011199,2]
[330937207,1719952089356,305.0,0.00011199,2]
[330937208,1719952103395,1500.0,0.00011199,2]
[330937213,1719952135785,227.09542874,0.00011199,2]
[330937220,1719952174235,1750.75974525,0.00011199,2]
[330937223,1719952228373,571.12,0.00011161,2]
[330937235,1719952232948,-351.96,0.00012076,2]
[330937236,1719952233042,-567.8551,0.00012076,2]
[330937237,1719952233053,-2225.2837,0.00013028,2]
[330937238,1719952233063,-388.56,0.00013058,2]
[330937239,1719952233072,-408.65,0.00013143,2]
[330937240,1719952233081,-736.58,0.00013168,2]
[330937241,1719952233092,-178.47,0.00013173,2]
[330937242,1719952233101,-23900.0,0.00013257,2]
[330937243,1719952233112,-499.99,0.00013257,2]
[330937244,1719952233124,-250.0,0.00013267,2]
[330937245,1719952233133,-5913.01,0.00013279,2]
[330937246,1719952233143,-3402.51,0.00013279,2]
[330937247,1719952233152,-571.12,0.00013425,2]
[330937248,1719952233162,-2237.0,0.00013438,2]
[330937249,1719952233173,-19044.0,0.00013448,2]
[330937250,1719952233183,-317.35168101,0.00013471,2]
[330937251,1719952233194,-1054.99023326,0.00013472,2]
[330937252,1719952233203,-150.99,0.00013516,2]
[330937253,1719952233213,-437.83490328,0.00013516,2]
[330937254,1719952233223,-202.68124914,0.00013516,2]
[330937255,1719952233233,-235.85977765,0.00013574,2]
[330937256,1719952233243,-1082.44353776,0.00013574,2]
[330937257,1719952233252,-514.55074733,0.00013574,2]
[330937258,1719952233262,-1000.0,0.00013583,2]
[330937259,1719952233271,-200.0,0.000136,4]
[330937260,1719952233282,-189.88,0.0001361,2]
[330937261,1719952233291,-200.06,0.00013699,2]
[330937262,1719952233300,-500.0,0.000137,5]
[330937263,1719952233311,-1070.42703277,0.00013736,2]
[330937264,1719952233320,-3393.16408193,0.00013736,2]
[330937265,1719952233330,-805.42887238,0.00013759,2]
[330937267,1719952233340,-800.0,0.000138,5]
[330937269,1719952233350,-690.00328514,0.00013849,2]
[330937271,1719952233360,-479.3045,0.0001386,2]
[330937273,1719952233373,-618.33759929,0.0001389,2]
[330937275,1719952233383,-179.8692053,0.000139,2]
[330937276,1719952233392,-1716.7885,0.000139,2]
[330937279,1719952233402,-1100.0,0.000139,5]
[330937281,1719952233412,-226.74750375,0.000139,2]
[330937283,1719952233422,-3383.15030809,0.000139,2]
[330937285,1719952233433,-614.69828222,0.000139,2]
[330937287,1719952233443,-3368.27179755,0.000139,2]
[330937288,1719952233453,-248.11582121,0.000139,2]
[330937289,1719952233462,-309.21512156,0.000139,2]
[330937290,1719952233472,-378.81590236,0.00013989,2]
[330937291,1719952233482,-1092.41151408,0.00013999,5]
[330937292,1719952233492,-299.6431574,0.00013999,2]
[330937293,1719952233502,-378419.14253797,0.00014,2]
[330937294,1719952233515,-502.38785382,0.00014,2]
[330937295,1719952233531,-396.51876854,0.00014,2]
[330937308,1719952238554,-1518.6252887,0.00013472,2]
[330937311,1719952238575,-1874.53879323,0.00013472,2]
[330937312,1719952238586,-235.85977765,0.00013574,2]
[330937313,1719952238600,-188.80625026,0.0001399,2]
[330937314,1719952238610,-1472065.63843993,0.00014,2]
[330937316,1719952238622,-557260.87275535,0.00014,2]
[330937319,1719952238644,-16970.06330132,0.00014,2]
[330937321,1719952238659,-3033.20517682,0.00014,2]
[330937325,1719952238688,-7911.35277425,0.00014,2]
[330937362,1719952240272,-504.74498103,0.00014,2]
[330937363,1719952240558,-1476.48655076,0.00014,2]
[330937364,1719952240570,-614.54119499,0.00014,2]
[330937365,1719952240584,-2579.13025422,0.00014,2]
[330937366,1719952240599,-149790.11133194,0.00014,2]
[330937367,1719952240625,-9072.06453866,0.00014,2]
[330937368,1719952240653,-70470.58836194,0.00014,2]
[330937369,1719952240690,-795.01166931,0.00014,2]
[330937370,1719952240702,-449.3685477,0.00014,2]
[330937373,1719952240726,-5277.91856876,0.00014,2]
[330937453,1719952243062,-221062.10819619,0.00014,2]
[330937454,1719952243072,-386528.22168737,0.00014,2]
[330937455,1719952243084,-335.55999996,0.00014,2]
[330937456,1719952243147,-707.3898016,0.00014,2]
[330937457,1719952243163,-2385.14,0.00014,2]
[330937458,1719952243176,-3270.22817816,0.00014,2]
[330937459,1719952243187,-2421.6,0.00014,2]
[330937460,1719952243206,-34436.61055008,0.00014,2]
[330937461,1719952243219,-310.0,0.00014,2]
[330937462,1719952243231,-2295.6112263,0.00014,2]
[330937463,1719952243301,-6936.55694516,0.00014,2]
[330937464,1719952243314,-1477.60850995,0.00014,2]
[330937465,1719952243326,-732.51196725,0.00014,2]
[330937466,1719952243337,-3491.09720002,0.00014,2]
[330937467,1719952243350,-432.0,0.00014,2]
[330937468,1719952243379,-21819.99370451,0.00014,2]
[330937469,1719952243461,-374.0683699,0.00014,2]
[330937475,1719952245989,-691.5217741,0.00014,2]
[330937476,1719952246748,-777.38,0.00014,2]
[330937477,1719952246790,-1103.72916277,0.00014,2]
[330937478,1719952246801,-939.883994,0.00014,2]
[330937479,1719952246813,-776.25812748,0.00014,2]
[330937480,1719952246828,-2347.40223909,0.00014,2]
[330937481,1719952250831,5224.0379,0.00011161,2]
[330937505,1719952407775,3393.16408193,0.00011199,2]
[330937511,1719952422835,3393.16408193,0.00011199,2]
[330937514,1719952451758,2235.54367464,0.00011,2]
[330937520,1719952471081,1264.71015021,6.94e-05,2]
[330937545,1719952534061,2003.8715436,0.00011199,2]
[330937549,1719952544294,5254.20901217,0.000112,2]
[330937552,1719952548388,1052.31971032,0.00011199,2]
[330937555,1719952552786,788.1795791,0.00011199,2]
[330937556,1719952566375,646.49279203,0.00011199,2]
[330937564,1719952590893,484.9491557,0.00011199,2]
[330937565,1719952602503,258.8272371,0.00011199,2]
[330937568,1719952607690,165.27,0.00010041,2]
[330937570,1719952610842,243.57159997,0.00011199,2]
[330937572,1719952617863,227.09542874,0.00011199,2]
[330937573,1719952621287,684.6855422,0.00011199,2]
[330937574,1719952625518,294.11862641,0.00011199,2]
[330937575,1719952626306,559.19857836,0.00011199,2]
[330937576,1719952628119,524.1073643,0.00011199,2]
[330937577,1719952634584,210.16051886,0.0001,2]
[330937580,1719952650799,3393.16408193,0.00011199,2]
[330937581,1719952658452,378.18292746,0.00011199,2]
[330937582,1719952659347,155.0,0.00011199,2]
[330937583,1719952668083,155.0,0.00011199,2]
[330937587,1719952674094,437.69795218,0.00011199,2]
[330937588,1719952675963,163.72484857,0.00011199,2]
[330937597,1719952723736,155.0,0.00011199,2]
[330937600,1719952744048,161.05117831,0.00011199,2]
[330937604,1719952784831,195.10413884,0.00011199,2]
[330937619,1719952887623,543.95,0.00010652,2]
[330937626,1719953061470,16260.89468285,0.00011199,2]
[330937627,1719953061498,9002.09870915,0.00011199,2]
[330937628,1719953063667,1252.01183286,0.00011199,2]
[330937633,1719953169866,1902.39925616,0.00011199,2]
[330937634,1719953175094,180.15111946,0.00011199,2]
[330937635,1719953184417,155.0,0.00011199,2]
[330937636,1719953210659,203.88682512,0.00011199,2]
[330937649,1719953407611,155.64183625,0.00011199,2]
[330937650,1719953429183,572.43,0.00010541,2]
[330937654,1719953432312,-328.33,0.00012273,2]
[330937655,1719953432324,-84.63604001,0.00012273,2]
[330937656,1719953432334,-189.88,0.0001246,2]
[330937657,1719953432343,-789.26,0.00012466,2]
[330937658,1719953432353,-250.0,0.00012471,2]
[330937659,1719953432363,-250.0,0.00012471,2]
[330937660,1719953432373,-1876.0546342,0.0001251,2]
[330937661,1719953432382,-176.55,0.00012538,2]
[330937662,1719953432392,-150.0,0.00012548,2]
[330937663,1719953432403,-1007.88,0.00012549,2]
[330937664,1719953432412,-300.0,0.00012568,2]
[330937665,1719953432422,-300.0,0.00012569,2]
[330937666,1719953432431,-3104.9,0.00012569,2]
[330937667,1719953432441,-690.12,0.0001257,2]
[330937668,1719953432450,-2128.38,0.0001257,2]
[330937669,1719953432460,-14308.06354727,0.00012577,2]
[330937670,1719953432473,-9591.93645273,0.00012577,2]
[330937671,1719953432482,-1000.0,0.00012584,2]
[330937672,1719953432492,-307.56,0.00012589,2]
[330937673,1719953432501,-4042.41,0.00012591,2]
[330937674,1719953432512,-150.0,0.000126,2]
[330937675,1719953432521,-763.76,0.00012615,2]
[330937676,1719953432531,-156.33,0.00012644,2]
[330937677,1719953432540,-169.7,0.00012669,2]
[330937678,1719953432550,-572.43,0.00012805,2]
[330937679,1719953432560,-559.0,0.00012867,2]
[330937680,1719953432569,-1164.2,0.00012867,2]
[330937681,1719953432578,-559.0,0.0001287,2]
[330937682,1719953432588,-559.0,0.00012874,2]
[330937683,1719953432598,-559.0,0.00012877,2]
[330937684,1719953432607,-559.0,0.0001288,2]
[330937686,1719953432616,-559.0,0.00012884,2]
[330937688,1719953432625,-559.0,0.00012887,2]
[330937690,1719953432634,-559.0,0.00012891,2]
[330937691,1719953432643,-559.0,0.00012894,2]
[330937692,1719953432652,-559.0,0.00012897,2]
[330937693,1719953432661,-559.0,0.00012901,2]
[330937694,1719953432670,-559.0,0.00012904,2]
[330937695,1719953432681,-559.0,0.00012908,2]
[330937696,1719953432691,-559.0,0.00012911,2]
[330937697,1719953432700,-559.0,0.00012914,2]
[330937698,1719953432710,-559.0,0.00012918,2]
[330937699,1719953432720,-559.0,0.00012921,2]
[330937700,1719953432729,-559.0,0.00012925,2]
[330937701,1719953432739,-559.0,0.00012928,2]
[330937702,1719953432748,-559.0,0.00012931,2]
[330937703,1719953432757,-1133.60989333,0.00013472,2]
[330937704,1719953432768,-5949.56039575,0.00013574,2]
[330937705,1719953432777,-3812.51582818,0.00013574,2]
[330937706,1719953432787,-1646.0,0.00013584,2]
[330937707,1719953432796,-8249.87,0.00013699,2]
[330937708,1719953432806,-1500.0,0.00013699,5]
[330937709,1719953432815,-280.63,0.00013699,2]
[330937710,1719953432825,-215.48,0.00013699,2]
[330937711,1719953432834,-150.0,0.00013726,2]
[330937712,1719953432844,-150.0,0.00013727,2]
[330937713,1719953432854,-150.0,0.00013728,2]
[330937714,1719953432863,-150.0,0.00013728,2]
[330937715,1719953432873,-150.0,0.00013733,2]
[330937716,1719953432882,-150.0,0.00013738,2]
[330937717,1719953432892,-150.0,0.00013742,2]
[330937718,1719953432901,-150.0,0.00013742,2]
[330937719,1719953432910,-150.0,0.00013742,2]
[330937720,1719953432920,-150.0,0.00013747,2]
[330937721,1719953432929,-150.0,0.00013747,2]
[330937722,1719953432939,-150.0,0.00013749,2]
[330937723,1719953432948,-150.0,0.00013754,2]
[330937724,1719953432958,-150.0,0.00013754,2]
[330937725,1719953432968,-150.0,0.00013754,2]
[330937726,1719953432977,-150.0,0.00013759,2]
[330937727,1719953432987,-150.0,0.00013764,2]
[330937728,1719953432997,-150.0,0.00013772,2]
[330937729,1719953433009,-150.0,0.00013773,2]
[330937730,1719953433019,-150.0,0.00013778,2]
[330937731,1719953433029,-150.0,0.00013779,2]
[330937732,1719953433039,-150.0,0.00013779,2]
[330937733,1719953433050,-150.0,0.00013779,2]
[330937734,1719953433060,-150.0,0.0001378,2]
[330937735,1719953433069,-150.0,0.00013782,2]
[330937736,1719953433081,-300.0,0.00013782,2]
[330937737,1719953433092,-150.0,0.00013786,2]
[330937738,1719953433101,-150.0,0.00013787,2]
[330937739,1719953433112,-150.0,0.0001379,2]
[330937740,1719953433121,-150.0,0.00013791,2]
[330937741,1719953433131,-150.0,0.00013792,2]
[330937742,1719953433140,-150.0,0.00013795,2]
[330937743,1719953433149,-150.0,0.00013797,2]
[330937744,1719953433159,-150.0,0.00013798,2]
[330937745,1719953433169,-150.0,0.00013803,2]
[330937746,1719953433179,-150.0,0.00013804,2]
[330937747,1719953433188,-150.0,0.00013806,2]
[330937748,1719953433197,-173.04,0.00013808,2]
[330937749,1719953433207,-150.0,0.0001381,2]
[330937750,1719953433217,-150.0,0.00013813,2]
[330937751,1719953433226,-150.0,0.00013813,2]
[330937752,1719953433235,-150.0,0.00013817,2]
[330937753,1719953433244,-150.0,0.00013821,2]
[330937754,1719953433254,-150.0,0.00013821,2]
[330937755,1719953433264,-150.0,0.00013823,2]
[330937756,1719953433273,-150.0,0.00013828,2]
[330937757,1719953433283,-150.0,0.00013842,2]
[330937758,1719953433292,-150.0,0.00013846,2]
[330937759,1719953433302,-150.0,0.00013848,2]
[330937760,1719953433311,-150.0,0.00013849,2]
[330937761,1719953433320,-150.0,0.0001385,2]
[330937762,1719953433329,-150.0,0.0001385,2]
[330937763,1719953433339,-150.0,0.00013853,2]
[330937764,1719953433348,-150.0,0.00013855,2]
[330937765,1719953433358,-150.0,0.00013856,2]
[330937766,1719953433367,-150.0,0.00013859,2]
[330937767,1719953433376,-1740.97561,0.0001386,2]
[330937768,1719953433385,-150.0,0.0001387,2]
[330937769,1719953433395,-150.0,0.00013873,2]
[330937770,1719953433404,-150.0,0.00013875,2]
[330937771,1719953433413,-150.0,0.0001388,2]
[330937772,1719953433422,-150.0,0.00013887,2]
[330937773,1719953433432,-150.0,0.0001389,2]
[330937774,1719953433441,-220.28,0.0001389,3]
[330937775,1719953433451,-150.0,0.00013893,2]
[330937776,1719953433460,-150.0,0.00013898,2]
[330937777,1719953433469,-380.19442756,0.00013899,2]
[330937778,1719953433478,-150.0,0.00013899,2]
[330937779,1719953433487,-1000.0,0.000139,2]
[330937780,1719953433496,-602.7287,0.000139,2]
[330937781,1719953433506,-315.6806,0.000139,2]
[330937782,1719953433516,-5126.0387,0.000139,2]
[330937783,1719953433525,-3404.5372,0.000139,2]
[330937784,1719953433534,-615.5753,0.000139,2]
[330937785,1719953433543,-177.5368,0.000139,2]
[330937786,1719953433552,-23073.4131,0.000139,2]
[330937787,1719953433561,-187.74629942,0.000139,2]
[330937788,1719953433570,-1000.0,0.000139,2]
[330937789,1719953433579,-174.3285366,0.000139,2]
[330937790,1719953433588,-3311.48077475,0.000139,2]
[330937791,1719953433598,-311.73458304,0.000139,2]
[330937792,1719953433609,-493.6232978,0.000139,2]
[330937793,1719953433619,-3219.05846025,0.000139,2]
[330937794,1719953433630,-150.0,0.00013903,2]
[330937795,1719953433642,-150.0,0.0001391,2]
[330937796,1719953433651,-150.0,0.00013911,2]
[330937797,1719953433661,-150.0,0.00013911,2]
[330937798,1719953433671,-150.0,0.00013915,2]
[330937799,1719953433681,-150.0,0.00013919,2]
[330937800,1719953433690,-150.0,0.00013919,2]
[330937801,1719953433699,-150.0,0.00013923,2]
[330937802,1719953433710,-150.0,0.00013924,2]
[330937803,1719953433720,-150.0,0.00013939,2]
[330937804,1719953433729,-150.0,0.0001394,2]
[330937805,1719953433740,-150.0,0.00013943,2]
[330937806,1719953433750,-150.0,0.00013944,2]
[330937807,1719953433763,-150.0,0.00013953,2]
[330937808,1719953433772,-150.0,0.00013958,2]
[330937809,1719953433782,-150.0,0.0001396,2]
[330937810,1719953433792,-150.0,0.00013963,2]
[330937811,1719953433801,-150.0,0.00013967,2]
[330937812,1719953433811,-150.0,0.0001397,2]
[330937813,1719953433820,-150.0,0.0001397,2]
[330937814,1719953433830,-150.0,0.00013971,2]
[330937815,1719953433839,-150.0,0.00013972,2]
[330937816,1719953433849,-150.0,0.00013974,2]
[330937817,1719953433859,-150.0,0.00013975,2]
[330937818,1719953433869,-150.0,0.00013978,2]
[330937819,1719953433879,-150.0,0.0001398,2]
[330937820,1719953433888,-150.0,0.0001398,2]
[330937821,1719953433897,-150.0,0.00013981,2]
[330937822,1719953433907,-150.0,0.00013985,2]
[330937823,1719953433917,-150.0,0.00013985,2]
[330937824,1719953433927,-150.0,0.00013988,2]
[330937825,1719953433937,-150.0,0.00013989,2]
[330937826,1719953433947,-150.0,0.0001399,2]
[330937827,1719953433960,-195.23152178,0.0001399,2]
[330937828,1719953433969,-195.23152178,0.0001399,2]
[330937829,1719953433979,-150.0,0.00013994,2]
[330937830,1719953433989,-1015.76737933,0.00013999,2]
[330937831,1719953434001,-173.44846727,0.00013999,2]
[330937832,1719953434012,-239943.78933677,0.00014,2]
[330937833,1719953434025,-3071.91999903,0.00014,2]
[330937834,1719953434040,-40482.97758371,0.00014,2]
[330937835,1719953434053,-50631.06817442,0.00014,2]
[330937836,1719953434062,-461.77519824,0.00014,2]
[330937837,1719953434071,-155.0,0.00014,2]
[330937838,1719953434083,-1681458.87667985,0.00014,2]
[330937839,1719953434110,-442.92316741,0.00014,2]
[330937840,1719953434122,-428.32614833,0.00014,2]
[330937841,1719953434133,-3411.11018416,0.00014,2]
[330937842,1719953434145,-1010.84700863,0.00014,2]
[330937843,1719953434157,-6041.75748108,0.00014,2]
[330937844,1719953438217,-155.0,0.00013472,2]
[330937845,1719953438227,-558752.7423503,0.00014,2]
[330937846,1719953438252,-30286.63931483,0.00014,2]
[330937847,1719953438263,-26718.03744393,0.00014,2]
[330937848,1719953438462,-10100.7667169,0.00014,2]
[330937893,1719953440732,-317.9416966,0.000139,2]
[330937894,1719953440741,-231.00233862,0.00014,2]
[330937895,1719953440760,-4042.275,0.00014,2]
[330937952,1719953443357,-836.79791077,0.00014,2]
[330937959,1719953443466,-616.45468681,0.00014,2]
[330937960,1719953443726,-3055.99360062,0.00014,2]
[330937961,1719953443738,-34436.61055008,0.00014,2]
[330938092,1719953446379,-573.43013765,0.00014,2]
[330938093,1719953446392,-2083.95,0.00014,2]
[330938094,1719953446403,-2053.445,0.00014,2]
[330938095,1719953446414,-4346.79,0.00014,2]
[330938096,1719953446491,-250.03396784,0.00014,2]
[330938100,1719953446760,-62273.48540927,0.00014,2]
[330938102,1719953446773,-2301.10079766,0.00014,2]
[330938106,1719953446797,-423.17404387,0.00014,2]
[330938727,1719953820865,529.95804437,0.00011199,2]
[330938733,1719954045883,3391.35870222,0.00011199,2]
[330938736,1719954069834,19608.51382202,0.00011199,2]
[330938737,1719954072468,2552.63848332,0.00011199,2]
[330938740,1719954119649,1286.08864935,0.00011199,2]
[330938741,1719954137007,2050.0582361,0.00011199,2]
[330938743,1719954175363,310.0,0.00011199,2]
[330938744,1719954186246,541.77822868,0.00011199,2]
[330938747,1719954305530,25273.92860878,0.00011199,2]
[330938752,1719954447912,6226.22133206,0.00011199,2]
[330938753,1719954449563,1629.68403831,0.00011199,2]
[330938754,1719954456143,5379.96919912,0.00011199,2]
[330938755,1719954464593,1629.68403831,0.00011199,2]
[330938760,1719954533033,10249.56496095,0.00011199,2]
[330938761,1719954538588,-542.13,0.00012032,2]
[330938762,1719954538614,-32.87,0.00012314,2]
[330938763,1719954557271,173.54,0.0001055,2]
[330938765,1719954576218,-549.25,0.00011378,2]
[330938766,1719954576244,-25.75,0.00012314,2]
[330938773,1719954592347,-520.56613512,0.00012302,2]
[330938774,1719954592373,-54.43386488,0.00012788,10]
[330938793,1719954631491,-586.21021824,0.00012788,2]
[330938794,1719954631502,-47.43234566,0.00013115,2]
[330938795,1719954631513,-231.63765434,0.00013115,2]
[330938796,1719954631523,-1000.0,0.00013164,2]
[330938797,1719954631536,-250.0,0.00013286,2]
[330938798,1719954631545,-300.0,0.00013485,2]
[330938799,1719954631554,-3888.035022,0.00013486,2]
[330938800,1719954631567,-1209.45727771,0.00013486,2]
[330938801,1719954631597,-3556.45336523,0.00013486,2]
[330938802,1719954631610,-11743.0,0.00013486,2]
[330938803,1719954631648,-3503.05433506,0.00013486,2]
[330938804,1719954631659,-150.0,0.00013488,2]
[330938805,1719954631669,-155.0,0.00013543,2]
[330938806,1719954631681,-304.32743655,0.00013543,2]
[330938807,1719954631692,-308.80132183,0.00013543,2]
[330938808,1719954631705,-1365.6260186,0.00013574,2]
[330938809,1719954631716,-250.0,0.00013608,2]
[330938810,1719954631727,-549.25,0.00013642,2]
[330938818,1719954631951,-1060.92374417,0.00013689,2]
[330938819,1719954631963,-14480.11792655,0.00013689,2]
[330938820,1719954631972,-11725.11,0.00013699,2]
[330938821,1719954631980,-1670.74,0.00013699,2]
[330938822,1719954631989,-2847.42,0.00013699,2]
[330938823,1719954631998,-500.0,0.00013699,2]
[330938824,1719954632008,-403.58,0.00013699,2]
[330938825,1719954632018,-3262.26886491,0.0001389,2]
[330938826,1719954632028,-3238.22595721,0.0001389,2]
[330938827,1719954632039,-3446.4424,0.0001389,2]
[330938828,1719954632048,-220.33,0.0001389,2]
[330938829,1719954632057,-1000.0,0.000139,2]
[330938830,1719954632066,-1201.56371273,0.000139,2]
[330938831,1719954632077,-1237.7892,0.000139,2]
[330938832,1719954632086,-1384.9754,0.000139,2]
[330938833,1719954632095,-355.5718446,0.000139,2]
[330938834,1719954632104,-317.94169659,0.000139,2]
[330938835,1719954632113,-329.08219852,0.000139,2]
[330938836,1719954632124,-3449.8533004,0.00013989,2]
[330938837,1719954632133,-38280.6698876,0.00013989,2]
[330938838,1719954632143,-34768.17131818,0.0001399,2]
[330938855,1719954637606,-10427.5291305,0.0001399,2]
[330938856,1719954637618,-9329.7822674,0.0001399,2]
[330938857,1719954637628,-620.10900743,0.00013994,2]
[330938858,1719954637637,-620.10900742,0.00013994,2]
[330938859,1719954637647,-544.0,0.00014,2]
[330938860,1719954637656,-150.0,0.00014,2]
[330938861,1719954637666,-23503.65092557,0.00014,2]
[330938862,1719954637678,-688.35,0.00014,2]
[330938863,1719954637690,-389.51022141,0.00014,2]
[330938864,1719954637701,-4186.27582778,0.00014,2]
[330938865,1719954637726,-886.22638453,0.00014,2]
[330938866,1719954637738,-1443.26152,0.00014,2]
[330938867,1719954637750,-24341.63434138,0.00014,2]
[330938868,1719954637763,-393.68764885,0.00014,2]
[330938869,1719954637774,-148195.47025677,0.00014,2]
[330938870,1719954637842,-311.72816,0.00014,2]
[330938872,1719954637871,-404.64145571,0.00014,2]